[Event "Reykjavik Open 2022"]
[Site "Reykjavik"]
[Date "2022.04.07"]
[Round "3.14"]
[White "Stefansson, Vignir Vatnar"]
[Black "Zysko, Jan"]
[Result "1-0"]
[ECO "D31"]
[WhiteElo "2484"]
[BlackElo "2108"]
[Annotator "TA"]
[PlyCount "87"]
[EventDate "2022.04.06"]
[EventCountry "ISL"]
[SourceTitle "playchess.com"]
[Source "ChessBase"]
[SourceQuality "1"]
[TimeControl "40/5400+30:1800+30"]

{[%evp 40,87,37,34,131,-16,204,24,29,29,118,118,118,120,131,127,127,77,110,100,101,83,111,83,120,119,112,110,399,399,397,391,391,366,383,372,372,355,332,254,425,389,5838,5900,5779,5357,29978,116,29972,29942]} 1. c4 {[%emt 0:00:41]} c6 {[%emt 0:01:27]} 2. d4 {[%emt 0:00:33]} d5 {[%emt 0:00:09]} 3. Nc3 {[%emt 0:00:26]} Nf6 {[%emt 0:00:08]} 4. e3 {[%emt 0:00:40]} e6 {[%emt 0:00:49]} 5. Rb1 {[%emt 0:00:07]} Nbd7 {[%emt 0:08:18]} 6. Qc2 {[%emt 0:00:18]} dxc4 {[%emt 0:04:31]} 7. Bxc4 {[%emt 0:00:13]} Bd6 {[%emt 0:01:04]} 8. Nge2 {[%emt 0:08:34]} O-O {[%emt 0:09:26]} 9. f4 {[%emt 0:09:19]} c5 {[%emt 0:01:48]} 10. O-O {[%emt 0:03:14]} a6 {[%emt 0:03:03]} 11. a4 {[%emt 0:06:18]} Qc7 {[%emt 0:04:12]} 12. b3 {[%emt 0:02:21]} cxd4 {[%emt 0:21:44]} 13. Nxd4 {[%emt 0:02:20]} Nb6 {[%emt 0:00:35]} 14. Bd3 {[%emt 0:00:32]} e5 {[%emt 0:01:19]} 15. Nde2 {[%emt 0:00:42]} h6 {[%emt 0:11:16]} 16. h3 {[%emt 0:04:28]} Bd7 {[%emt 0:05:21]} 17. Bb2 {[%emt 0:03:07]} Rfe8 {[%emt 0:03:29]} 18. Rbd1 {[%emt 0:04:05]} Bc6 {[%emt 0:01:10]} 19. Ng3 {[%emt 0:08:41]} exf4 {[%emt 0:01:25]} 20. Nf5 {[%emt 0:00:18]} Bc5 {[%emt 0:01:14]} (20... fxe3 $2 21. Nxd6 Re6 $18) 21. Ne2 {[%emt 0:02:24]} Nbd7 {[%emt 0:04:14]} (21... Bd7 $14 22. Bxf6 Bxf5 23. Bxf5 Bxe3+ 24. Kh2 Qxc2 25. Bxc2 gxf6) 22. Nxf4 {[%emt 0:02:43]} (22. Bxf6 $16 gxf6 23. Nxf4 Rxe3 24. Kh2 (24. Nxh6+ Kf8 $17)) 22... Qb6 $2 {[%emt 0:01:10]} (22... Rxe3 $11 {and Black has nothing to worry.} 23. Kh2 Rxd3 24. Rxd3 Be4 25. Nxh6+ (25. Ne7+ Kf8 $17) 25... Kh7) 23. Bd4 $2 {[%emt 0:08:49]} (23. Bc4 $18 {[%cal Of5h6] Strongly threatening Nxh6+!} Bxe3+ 24. Kh1 Bxf4 25. Rxf4) 23... Bxd4 $11 {[%emt 0:01:07]} 24. exd4 {[%emt 0:01:39]} Rac8 {[%emt 0:03:59]} (24... Kh8 $11 {remains equal.}) 25. Nd6 $16 {[%emt 0:05:25]} Qxd4+ {[%emt 0:00:56]} 26. Qf2 {[%emt 0:01:53]} Qb4 {[%emt 0:01:47]} 27. Nxc8 {[%emt 0:00:24]} Rxc8 {[%emt 0:00:07]} 28. Qg3 {[%emt 0:04:27]} ({White should try} 28. Bc4) 28... Ne5 {[%emt 0:01:33]} 29. Bf5 {[%emt 0:01:17]} Re8 {[%emt 0:01:09]} 30. Kh2 {[%emt 0:00:14]} Qc5 {[%emt 0:03:43]} 31. Bb1 {[%emt 0:02:07]} Ne4 {[%emt 0:01:30]} 32. Bxe4 {[%emt 0:01:00]} Bxe4 {[%emt 0:00:02]} 33. Rde1 {[%emt 0:00:46]} f5 $2 {[%emt 0:00:29][%mdl 8192] [#]} (33... Qc6 $16) 34. Nh5 $1 $18 {[%emt 0:01:13]} Qe7 {[%emt 0:00:01]} 35. Rxe4 $1 {[%emt 0:09:28]} fxe4 {[%emt 0:00:02]} 36. Nf6+ $1 {[%emt 0:00:09]} Kh8 {[%emt 0:00:07]} 37. Nxe8 {[%emt 0:00:14]} Qxe8 {[%emt 0:00:01]} 38. Qf4 {[%emt 0:01:09]} Nd7 {[%emt 0:00:25]} 39. Qf7 {[%emt 0:00:35]} Qe5+ $2 {[%emt 0:00:05]} (39... Qb8+ 40. Qf4 Qe8) 40. Kh1 $18 {[%emt 0:00:00]} Nc5 $2 {[%emt 0:00:00]} (40... Nf6 41. Qxb7 Kh7 42. Qxa6 Nh5) 41. Rf5 $18 {[%emt 0:04:26]} Qa1+ {[%emt 0:04:17]} 42. Kh2 {[%emt 0:00:08]} b6 {[%emt 0:00:05]} 43. Qe8+ {[%emt 0:00:22]} Kh7 {[%emt 0:00:07]} 44. Rf8 {[%emt 0:00:19]} 1-0

[Event "Reykjavik Open 2022"]
[Site "Reykjavik"]
[Date "2022.04.07"]
[Round "3.15"]
[White "Laurent-Paoli, Pierre"]
[Black "Sowray, Peter J"]
[Result "1-0"]
[ECO "E08"]
[WhiteElo "2483"]
[BlackElo "2226"]
[Annotator "TA"]
[PlyCount "73"]
[EventDate "2022.04.06"]
[EventCountry "ISL"]
[SourceTitle "playchess.com"]
[Source "ChessBase"]
[SourceQuality "1"]
[TimeControl "40/5400+30:1800+30"]

{[%evp 32,73,31,26,131,126,141,130,124,122,129,130,118,129,130,131,133,128,139,131,157,145,212,193,354,362,414,242,514,515,518,488,620,617,579,599,687,677,1049,1027,1031,833,1269,911]} 1. d4 {[%emt 0:00:04]} d5 {[%emt 0:00:08]} 2. c4 {[%emt 0:00:07]} e6 {[%emt 0:00:06]} 3. Nf3 {[%emt 0:00:16]} Nf6 {[%emt 0:00:08]} 4. g3 {[%emt 0:00:35]} Bb4+ {[%emt 0:02:02]} 5. Bd2 {[%emt 0:00:07]} Be7 {[%emt 0:00:07]} 6. Bg2 {[%emt 0:00:10]} O-O {[%emt 0:00:56]} 7. O-O {[%emt 0:00:04]} c6 {[%emt 0:02:51]} 8. Qc2 {[%emt 0:02:15]} b6 {[%emt 0:03:12]} 9. Rd1 {[%emt 0:01:26]} Nbd7 {[%emt 0:02:04]} 10. b3 {[%emt 0:01:20]} Bb7 {[%emt 0:02:55]} 11. Nc3 {[%emt 0:02:53]} Rc8 {[%emt 0:04:37]} 12. e4 {[%emt 0:02:47]} c5 {[%emt 0:02:48]} 13. exd5 {[%emt 0:01:10]} exd5 {[%emt 0:00:41]} 14. Bf4 {[%emt 0:09:35]} Re8 {[%emt 0:07:59]} 15. dxc5 {[%emt 0:11:37]} dxc4 {[%emt 0:02:54]} 16. b4 {[%emt 0:01:03]} bxc5 {[%emt 0:04:53]} 17. b5 {[%emt 0:00:04]} Qa5 {[%emt 0:06:33] [#] E08: Closed Catalan: Main Line: 7 Qc2.} (17... Qb6 $11) 18. a4 $1 $16 {[%emt 0:10:39]} Nf8 {[%emt 0:08:36]} 19. Ne5 {[%emt 0:05:50]} Bxg2 {[%emt 0:00:58] White is better.} 20. Nxc4 {[%emt 0:01:40]} ({Much worse is} 20. Kxg2 $6 Ng6 $11) 20... Qb4 {[%emt 0:00:56]} 21. Na2 {[%emt 0:00:07][%cal Bc3a2,Ba2b4,Bb4c2,Bc2e3][%mdl 32]} Be4 {[%emt 0:01:08]} 22. Nxb4 {[%emt 0:00:24] Threatens to win with Nd3.} Bxc2 {[%emt 0:00:14]} 23. Nxc2 {[%emt 0:00:03]} Ne6 {[%emt 0:03:22] [#]} 24. N2e3 $146 {[%emt 0:07:17] 0x0.001f0e324728dp-1022s more active pieces.} ({Predecessor:} 24. Bd6 Ne4 25. Bxe7 Rxe7 26. Kg2 h6 27. Ra3 Kf8 28. Rad3 Nf6 29. Ne5 c4 30. Ra3 {1-0 (38) Benidze,D (2318)-Margvelashvili,G (2456) Batumi 2006}) 24... Nxf4 {[%emt 0:11:16]} 25. gxf4 {[%emt 0:02:04]} Rb8 {[%emt 0:00:08]} 26. Kg2 {[%emt 0:04:04]} Red8 {[%emt 0:04:02]} (26... Bf8 $16 {was called for.}) 27. Ne5 {[%emt 0:02:54] And now Nc6 would win. Pair of Knights!} Rxd1 $2 {[%emt 0:02:45]} (27... Re8 28. Kf3 Rb7) 28. Rxd1 $18 {[%emt 0:00:09]} g6 {[%emt 0:04:07]} 29. Kf3 {[%emt 0:02:24]} (29. Nc6 $142 Rb7 30. a5) 29... Kf8 $2 {[%emt 0:01:22] [#]} (29... Rb7 {keeps fighting.} 30. Rb1 Nd7) 30. Rd7 $1 {[%emt 0:02:32][%mdl 512] White is clearly winning.} Ra8 {[%emt 0:00:35]} 31. Rb7 {[%emt 0:00:39]} c4 {[%emt 0:01:55]} 32. N3xc4 {[%emt 0:00:46]} Nd5 {[%emt 0:01:49]} 33. Nc6 {[%emt 0:00:37]} a6 {[%emt 0:02:26]} 34. b6 {[%emt 0:00:49]} Bc5 {[%emt 0:01:58]} 35. a5 {[%emt 0:01:11]} Rc8 {[%emt 0:01:33]} 36. N4e5 {[%emt 0:00:17]} Ke8 {[%emt 0:01:34]} 37. Na7 {[%emt 0:01:45] Black did not feel at home in the position after the opening.  Weighted Error Value: White=0.17 (very precise) /Black=0.64} 1-0

[Event "Reykjavik Open 2022"]
[Site "Reykjavik"]
[Date "2022.04.07"]
[Round "3.16"]
[White "Minko, Dmitry"]
[Black "Hjartarson, Johann"]
[Result "0-1"]
[ECO "B03"]
[WhiteElo "2298"]
[BlackElo "2470"]
[Annotator "TA"]
[PlyCount "92"]
[EventDate "2022.04.06"]
[EventCountry "ISL"]
[SourceTitle "playchess.com"]
[Source "ChessBase"]
[SourceQuality "1"]
[TimeControl "40/5400+30:1800+30"]

{[%evp 40,92,0,0,0,0,18,0,18,-6,0,-18,-25,-25,-11,-23,-20,-29,-11,-22,-17,-152,0,0,0,-17,-25,-21,-42,-670,-663,-826,-789,-29986,-29987,-29987,-1300,-29987,0,-29980,-29981,-29981,-29973,-29982,-29983,-29983,-29984,-29984,-29985,-29985,-29986,-29986,-29987,-29987,-29988]} 1. e4 {[%emt 0:00:10]} Nf6 {[%emt 0:00:42]} 2. e5 {[%emt 0:00:42]} Nd5 {[%emt 0:00:06]} 3. c4 {[%emt 0:00:15]} Nb6 {[%emt 0:00:21]} 4. d4 {[%emt 0:00:06]} d6 {[%emt 0:00:13]} 5. exd6 {[%emt 0:00:42]} cxd6 {[%emt 0:00:12]} 6. Nc3 {[%emt 0:00:20]} g6 {[%emt 0:00:11]} 7. Be3 {[%emt 0:00:41]} Bg7 {[%emt 0:00:12]} 8. b3 {[%emt 0:00:22]} O-O {[%emt 0:00:12]} 9. Rc1 {[%emt 0:00:28]} Bf5 {[%emt 0:07:33]} 10. Nf3 {[%emt 0:02:08]} d5 {[%emt 0:00:09]} 11. c5 {[%emt 0:10:00]} Nc8 {[%emt 0:00:22]} 12. Be2 {[%emt 0:02:51]} Nc6 {[%emt 0:00:13]} 13. O-O {[%emt 0:01:47]} Bg4 {[%emt 0:00:34]} 14. b4 {[%emt 0:23:14]} a6 {[%emt 0:05:06]} 15. a3 {[%emt 0:04:42]} Bxf3 {[%emt 0:02:30]} 16. Bxf3 {[%emt 0:00:18]} e6 {[%emt 0:00:06]} 17. b5 {[%emt 0:14:35]} axb5 {[%emt 0:01:06]} 18. Nxb5 {[%emt 0:00:05]} N8e7 {[%emt 0:05:54]} 19. Qd3 {[%emt 0:03:29]} Nf5 {[%emt 0:07:03]} 20. Bg4 {[%emt 0:02:51]} Qf6 {[%emt 0:05:04]} 21. Bxf5 {[%emt 0:01:44]} gxf5 {[%emt 0:00:12]} 22. g3 {[%emt 0:01:18]} h5 {[%emt 0:17:55]} 23. Rfd1 {[%emt 0:02:07]} h4 {[%emt 0:01:20]} 24. Rb1 {[%emt 0:01:44]} Ra4 {[%emt 0:06:42]} 25. Qb3 {[%emt 0:08:35]} Rc4 {[%emt 0:03:23]} 26. Rbc1 {[%emt 0:06:02]} Rxc1 {[%emt 0:04:55]} 27. Rxc1 {[%emt 0:02:00]} Qg6 {[%emt 0:00:27]} 28. Qd1 {[%emt 0:04:09]} Ra8 {[%emt 0:01:07]} 29. Rb1 {[%emt 0:00:39]} Bf6 {[%emt 0:05:40]} 30. Nd6 {[%emt 0:02:39]} (30. Kg2 $11) 30... hxg3 $2 {[%emt 0:09:36]} (30... Rxa3 $17 {...hxg3 is the strong threat.} 31. Nb5 (31. Rxb7 f4 $17) 31... Ra5) 31. hxg3 $11 {[%emt 0:00:08]} Rxa3 {[%emt 0:01:05]} 32. Rxb7 {[%emt 0:02:00]} f4 {[%emt 0:02:54]} 33. Bxf4 {[%emt 0:01:31]} Bxd4 {[%emt 0:01:00]} 34. Nxf7 $2 {[%emt 0:02:33][%mdl 8192]} ({Don't go for} 34. Rxf7 $2 Ra1 35. Qxa1 Bxa1 $19) (34. Kg2 $15) 34... Ra1 $19 {[%emt 0:01:47]} 35. Nh6+ {[%emt 0:00:31]} Kf8 {[%emt 0:00:14]} (35... Qxh6 $2 36. Qxa1 Qxf4 37. gxf4 $18) 36. Bc1 {[%emt 0:00:04]} Qxg3+ {[%emt 0:02:18]} 37. Kh1 {[%emt 0:00:03]} Qh3+ {[%emt 0:04:30]} 38. Kg1 {[%emt 0:00:04]} Qg3+ {[%emt 0:00:08]} 39. Kh1 {[%emt 0:00:05]} Qh4+ {[%emt 0:00:12]} 40. Kg2 {[%emt 0:00:00]} Qxf2+ {[%emt 0:00:00]} 41. Kh3 {[%emt 0:01:27]} Rxc1 {[%emt 0:05:55]} 42. Qxc1 {[%emt 0:01:55]} Qf3+ {[%emt 0:01:20]} 43. Kh2 {[%emt 0:00:34]} Be5+ {[%emt 0:00:15]} 44. Kg1 {[%emt 0:00:06]} Qg3+ {[%emt 0:00:06]} 45. Kf1 {[%emt 0:00:27]} Qh3+ {[%emt 0:00:06]} 46. Kf2 {[%emt 0:03:45]} Qh2+ {[%emt 0:00:28]} 0-1

[Event "Reykjavik Open 2022"]
[Site "Reykjavik"]
[Date "2022.04.07"]
[Round "3.17"]
[White "Doluhanova, Evgeniya"]
[Black "Williams, Simon K"]
[Result "0-1"]
[ECO "B51"]
[WhiteElo "2255"]
[BlackElo "2464"]
[Annotator "TA"]
[PlyCount "82"]
[EventDate "2022.04.06"]
[EventCountry "ISL"]
[SourceTitle "playchess.com"]
[Source "ChessBase"]
[SourceQuality "1"]
[TimeControl "40/5400+30:1800+30"]

{[%evp 39,82,-41,-32,-47,-17,-79,-64,-109,-95,-179,-163,-181,-174,-173,-185,-175,-161,-164,-154,-150,-104,-200,-198,-214,-136,-138,-122,-153,-145,-558,-633,-633,-625,-668,-647,-620,-540,-1000,-937,-1252,-1211,-1100,-839,-881,-769]} 1. e4 {[%emt 0:03:15]} c5 {[%emt 0:01:00]} 2. Nf3 {[%emt 0:00:09]} d6 {[%emt 0:00:13]} 3. Bb5+ {[%emt 0:00:17]} Nc6 {[%emt 0:01:13]} 4. O-O {[%emt 0:00:08]} Bd7 {[%emt 0:00:57]} 5. Re1 {[%emt 0:00:21]} a6 {[%emt 0:00:52]} 6. Bf1 {[%emt 0:00:05]} e5 {[%emt 0:06:28]} 7. c3 {[%emt 0:00:52]} g5 {[%emt 0:00:28]} 8. d4 {[%emt 0:02:05]} g4 {[%emt 0:00:21]} 9. d5 {[%emt 0:00:10]} Nce7 {[%emt 0:06:54]} 10. Nh4 {[%emt 0:03:53]} Bg7 {[%emt 0:13:03]} 11. f4 {[%emt 0:06:07]} Bf6 {[%emt 0:16:06]} 12. Nf5 {[%emt 0:00:17]} Nxf5 {[%emt 0:00:08]} 13. exf5 {[%emt 0:00:04]} Bxf5 {[%emt 0:01:07]} 14. Nd2 {[%emt 0:06:11]} Ne7 {[%emt 0:04:12]} 15. Nc4 {[%emt 0:01:45]} e4 {[%emt 0:04:26]} 16. Ne3 {[%emt 0:02:23]} Qd7 {[%emt 0:02:25]} 17. Nxf5 {[%emt 0:08:03]} Qxf5 {[%emt 0:00:19]} 18. Qa4+ {[%emt 0:00:45]} Kf8 {[%emt 0:00:08]} 19. Qxe4 {[%emt 0:07:58]} Qxe4 {[%emt 0:01:42]} 20. Rxe4 {[%emt 0:00:05]} Nxd5 {[%emt 0:00:17]} 21. Bd2 {[%emt 0:04:43]} Kg7 {[%emt 0:03:58]} 22. Rae1 {[%emt 0:02:38]} (22. h3 $11) 22... h5 {[%emt 0:01:07]} 23. Bd3 {[%emt 0:09:41]} b5 {[%emt 0:06:11]} 24. c4 {[%emt 0:13:48]} (24. h3 $17) 24... bxc4 $19 {[%emt 0:02:43]} 25. Bxc4 {[%emt 0:08:49]} Nb6 {[%emt 0:00:16]} 26. Bf1 {[%emt 0:00:16]} d5 {[%emt 0:01:30]} ({Resist} 26... Bxb2 27. Rb1 f5 28. Rxb2 $1 fxe4 29. Bc3+ (29. Rxb6 d5 $11) 29... Kg6 30. Rxb6 $16 (30. Bxh8 Na4 $11)) 27. R4e2 {[%emt 0:00:15]} c4 {[%emt 0:04:17]} 28. Ba5 {[%emt 0:02:26]} Rab8 {[%emt 0:05:01]} 29. Rd2 {[%emt 0:02:32] [#]} Rhc8 {[%emt 0:01:10]} ({Better is} 29... d4 $1 30. Rc1 (30. Bxb6 $2 c3 $19) 30... Rhc8 31. Bxb6 c3 32. bxc3 dxc3) 30. Rc1 {[%emt 0:03:27]} (30. Bc3 $17 {is a better defense.}) 30... Rc5 $19 {[%emt 0:05:09]} 31. b4 {[%emt 0:05:25]} Rc6 {[%emt 0:02:03]} 32. a3 {[%emt 0:04:00]} c3 {[%emt 0:01:28]} 33. Rdd1 {[%emt 0:00:23]} Nc4 {[%emt 0:03:32]} 34. Bxc4 $4 {[%emt 0:01:09][%mdl 8192]} (34. b5 $17 {nothing else works.}) 34... Rxc4 $19 {[%emt 0:00:50]} ({And not} 34... dxc4 35. g3 $17) 35. Rc2 {[%emt 0:01:37]} Re8 {[%emt 0:05:01]} 36. Bb6 {[%emt 0:01:25]} Rxf4 {[%emt 0:00:16]} 37. g3 {[%emt 0:00:13]} Rf5 {[%emt 0:00:25]} 38. Bf2 {[%emt 0:00:43]} Re4 {[%emt 0:00:16]} 39. Rd3 {[%emt 0:00:40]} Kg6 {[%emt 0:00:17]} 40. Kg2 {[%emt 0:00:00]} Rc4 {[%emt 0:00:00]} 41. Bc5 {[%emt 0:01:13]} d4 {[%emt 0:01:25]} 0-1

[Event "Reykjavik Open 2022"]
[Site "Reykjavik"]
[Date "2022.04.07"]
[Round "3.18"]
[White "Clarke, Brandon G I"]
[Black "George Samir, David"]
[Result "1-0"]
[ECO "C55"]
[WhiteElo "2430"]
[BlackElo "2032"]
[Annotator "TA"]
[PlyCount "63"]
[EventDate "2022.04.06"]
[EventCountry "ISL"]
[SourceTitle "playchess.com"]
[Source "ChessBase"]
[SourceQuality "1"]
[TimeControl "40/5400+30:1800+30"]

{[%evp 18,63,35,43,58,38,93,108,116,47,65,0,0,0,0,0,16,27,135,129,124,130,131,117,127,133,139,130,158,156,189,177,268,211,215,206,417,405,592,610,705,589,814,827,1047,923,851,800]} 1. e4 {[%emt 0:00:03]} e5 {[%emt 0:00:17]} 2. Nf3 {[%emt 0:00:07]} Nc6 {[%emt 0:00:17]} 3. Bc4 {[%emt 0:01:31]} Nf6 {[%emt 0:00:18]} 4. d3 {[%emt 0:00:27]} h6 {[%emt 0:01:00]} 5. c3 {[%emt 0:01:02]} d6 {[%emt 0:00:22]} 6. a4 {[%emt 0:00:48]} g5 {[%emt 0:00:22]} 7. Qb3 {[%emt 0:00:35]} Qe7 {[%emt 0:00:39]} 8. a5 {[%emt 0:00:35]} a6 {[%emt 0:00:21]} 9. h3 {[%emt 0:00:12]} Bg7 {[%emt 0:02:26]} 10. Be3 {[%emt 0:00:10]} O-O {[%emt 0:02:29]} 11. Nbd2 {[%emt 0:04:03]} Rd8 {[%emt 0:05:59] [#]} (11... Bd7 $14) 12. g4 $1 $16 {[%emt 0:01:25]} Rb8 {[%emt 0:04:21]} 13. Nf1 {[%emt 0:04:39]} (13. h4 $16) 13... Be6 {[%emt 0:01:12]} 14. Bd5 {[%emt 0:18:08]} (14. Bxe6 $1 $14 Qxe6 15. Qxe6 fxe6 16. h4) 14... Bxd5 $1 $11 {[%emt 0:02:22]} (14... Nxd5 15. exd5 Bd7 16. dxc6 $16) 15. exd5 {[%emt 0:00:15]} e4 {[%emt 0:00:52]} 16. N3d2 {[%emt 0:00:44]} ({Much weaker is} 16. dxc6 bxc6 17. Qc2 exf3 $17) 16... Ne5 {[%emt 0:00:34]} (16... exd3 $5 {[%cal Rc6e5]} 17. dxc6 bxc6 $11) 17. dxe4 {[%emt 0:00:50]} Nxe4 {[%emt 0:02:21]} (17... Nd3+ $1 $11 18. Ke2 Nc5 19. Bxc5 dxc5) 18. Nxe4 $16 {[%emt 0:01:14]} Nd3+ {[%emt 0:00:21]} 19. Kd2 {[%emt 0:00:31]} Qxe4 {[%emt 0:00:13]} 20. Ng3 {[%emt 0:00:18]} Qh7 {[%emt 0:00:41]} 21. Nf5 {[%emt 0:03:49]} Ne5 {[%emt 0:03:29]} 22. Ra4 {[%emt 0:07:38]} h5 {[%emt 0:04:49]} 23. Qd1 {[%emt 0:09:07]} f6 {[%emt 0:02:55]} 24. f4 {[%emt 0:05:09]} Nf7 {[%emt 0:00:25]} (24... gxf4 $142 25. Rxf4 h4) 25. Qf3 {[%emt 0:02:30]} Re8 {[%emt 0:01:21]} 26. Re4 {[%emt 0:00:52]} Bf8 $2 {[%emt 0:02:56]} (26... gxf4 {was worth a try.} 27. Bxf4 Ne5) 27. Re6 $18 {[%emt 0:04:01]} Rxe6 {[%emt 0:01:58]} (27... gxf4 $142 28. Bxf4 (28. Qxf4 Ng5 $11) 28... Rxe6 29. dxe6 Nd8) 28. dxe6 $18 {[%emt 0:00:03]} Nd8 {[%emt 0:00:00]} 29. Qe4 {[%emt 0:01:50]} Be7 {[%emt 0:06:22]} 30. fxg5 {[%emt 0:01:35]} fxg5 {[%emt 0:00:20]} 31. Rf1 {[%emt 0:00:26]} Nc6 {[%emt 0:00:53]} 32. Nxe7+ {[%emt 0:00:17]} 1-0

[Event "Reykjavik Open 2022"]
[Site "Reykjavik"]
[Date "2022.04.07"]
[Round "3.19"]
[White "Thorfinnsson, Bragi"]
[Black "Bosboom, Ardin"]
[Result "1-0"]
[ECO "B30"]
[WhiteElo "2419"]
[BlackElo "2090"]
[Annotator "TA"]
[PlyCount "71"]
[EventDate "2022.04.06"]
[EventCountry "ISL"]
[SourceTitle "playchess.com"]
[Source "ChessBase"]
[SourceQuality "1"]
[TimeControl "40/5400+30:1800+30"]

{[%evp 21,71,0,0,6,14,0,0,0,0,6,52,33,36,40,120,131,71,54,118,129,277,284,286,283,233,192,189,166,179,196,420,450,440,431,485,488,476,473,476,454,652,576,604,523,717,561,554,551,529,513,1904,1902]} 1. e4 {[%emt 0:00:03]} c5 {[%emt 0:00:13]} 2. Nf3 {[%emt 0:00:57]} Nc6 {[%emt 0:00:07]} 3. Bb5 {[%emt 0:01:19]} e6 {[%emt 0:00:17]} 4. O-O {[%emt 0:03:13]} Nge7 {[%emt 0:00:24]} 5. b3 {[%emt 0:01:13]} Ng6 {[%emt 0:02:31]} 6. Bb2 {[%emt 0:01:32]} f6 {[%emt 0:01:05]} 7. Bxc6 {[%emt 0:03:43]} bxc6 {[%emt 0:00:06]} 8. d4 {[%emt 0:03:56]} cxd4 {[%emt 0:01:27]} 9. Qxd4 {[%emt 0:01:35]} c5 {[%emt 0:06:18]} 10. Qe3 {[%emt 0:00:50]} Be7 {[%emt 0:01:05]} 11. h4 {[%emt 0:05:16]} O-O {[%emt 0:08:05]} 12. h5 {[%emt 0:03:50]} Nh8 $1 {[%emt 0:00:14]} 13. c4 {[%emt 0:01:41]} Bb7 {[%emt 0:02:55]} 14. Nc3 {[%emt 0:00:41]} Qe8 {[%emt 0:03:33]} 15. Rad1 {[%emt 0:04:17]} Bc6 {[%emt 0:04:06]} (15... d6 $11) 16. h6 $14 {[%emt 0:07:38]} g5 {[%emt 0:09:03]} 17. Rfe1 {[%emt 0:03:38]} g4 {[%emt 0:25:35]} (17... d6 $14) 18. Nh2 $16 {[%emt 0:02:11]} Qh5 {[%emt 0:02:17]} 19. Qg3 {[%emt 0:02:23]} f5 {[%emt 0:14:49]} ({Black should play} 19... Ng6 $14) 20. exf5 $16 {[%emt 0:07:26]} Bh4 {[%emt 0:00:33]} (20... Qxf5 $16 21. Nd5 (21. Qxg4+ Ng6 $16) 21... Bxd5) 21. Qxg4+ $18 {[%emt 0:02:41]} Qxg4 {[%emt 0:00:03]} 22. Nxg4 {[%emt 0:00:07]} Rxf5 {[%emt 0:00:03]} 23. Re2 {[%emt 0:06:26]} Ng6 {[%emt 0:02:21]} 24. f3 {[%emt 0:03:17]} Nf4 {[%emt 0:06:52]} 25. Red2 {[%emt 0:00:39]} Kf7 $2 {[%emt 0:01:14]} (25... d5 {keeps fighting.}) 26. Ne4 $18 {[%emt 0:01:21]} Be7 {[%emt 0:02:34]} 27. Ne5+ {[%emt 0:02:25]} Ke8 {[%emt 0:01:29]} 28. Nxc6 {[%emt 0:07:51]} dxc6 {[%emt 0:00:02]} 29. Nd6+ {[%emt 0:01:56]} Bxd6 {[%emt 0:00:01]} 30. Rxd6 {[%emt 0:00:12]} Kf7 {[%emt 0:01:31]} (30... Rf7 $142 31. Kf2 Rc8) 31. Rxc6 {[%emt 0:02:05]} Kg6 {[%emt 0:00:36]} 32. Rd7 {[%emt 0:04:06]} Kxh6 {[%emt 0:00:53]} 33. Bc1 {[%emt 0:02:11]} Kg6 {[%emt 0:01:14]} 34. Bxf4 {[%emt 0:00:28]} Rxf4 {[%emt 0:00:02]} 35. Rxe6+ {[%emt 0:00:15]} Kf5 {[%emt 0:00:02]} (35... Rf6 $142) 36. Rc6 {[%emt 0:00:30]} 1-0